Workbook

Sheet 貨物自動車運送車両数の推移
A1: 貨物自動車運送事業車両数の推移
B3: 年度別 | C3: 平成２９年度 | E3: 平成３０年度 | G3: 令和元年度 | I3: 令和２年度 | K3: 令和３年度
A4: 事業種別 | F4: 前年比 | H4: 前年比 | J4: 前年比 | L4: 前年比
A5: 茨城 | C5: 46068 | D5: =IFERROR(C5/A5,0) -> 0 | E5: 46527 | F5: =IFERROR(E5/C5,0) -> 1.009963532 | G5: 46986 | H5: =IFERROR(G5/E5,0) -> 1.00986524 | I5: 47234 | J5: =IFERROR(I5/G5,0) -> 1.005278168 | K5: 47622 | L5: =IFERROR(K5/I5,0) -> 1.008214422
B6: 一般 | C6: 46058 | D6: 0 | E6: 46517 | F6: 1.009965695 | G6: 46976 | H6: 1.00986736 | I6: 47224 | J6: 1.005279292 | K6: 47622 | L6: =IFERROR(K6/I6,0) -> 1.008427918
B7: 特積 | C7: 167 | D7: 0 | E7: 167 | F7: 1 | G7: 164 | H7: 0.9820359281 | I7: 158 | J7: 0.9634146341 | K7: 160 | L7: 1.012658228
B8: 特定 | C8: 10 | D8: 0 | E8: 10 | F8: 1 | G8: 10 | H8: 1 | I8: 10 | J8: 1 | K8: 0 | L8: 0
A9: 栃木 | C9: 25796 | D9: 0 | E9: 26087 | F9: 1.011280819 | G9: 26535 | H9: 1.017173305 | I9: 26697 | J9: 1.006105144 | K9: 26891 | L9: 1.007266734
B10: 一般 | C10: 25783 | D10: 0 | E10: 26074 | F10: 1.011286507 | G10: 26534 | H10: 1.017642096 | I10: 26696 | J10: 1.006105374 | K10: 26890 | L10: 1.007267006
B11: 特積 | C11: 336 | D11: 0 | E11: 322 | F11: 0.9583333333 | G11: 323 | H11: 1.00310559 | I11: 322 | J11: 0.9969040248 | K11: 322 | L11: 1
B12: 特定 | C12: 13 | D12: 0 | E12: 13 | F12: 1 | G12: 1 | H12: 0.07692307692 | I12: 1 | J12: 1 | K12: 1 | L12: 1
A13: 群馬 | C13: 27762 | D13: 0 | E13: 28332 | F13: 1.020531662 | G13: 28745 | H13: 1.014577157 | I13: 29184 | J13: 1.015272221 | K13: 29373 | L13: 1.006476151
B14: 一般 | C14: 27743 | D14: 0 | E14: 28313 | F14: 1.020545723 | G14: 28726 | H14: 1.014586939 | I14: 29165 | J14: 1.015282323 | K14: 29354 | L14: 1.00648037
B15: 特積 | C15: 275 | D15: 0 | E15: 276 | F15: 1.003636364 | G15: 276 | H15: 1 | I15: 280 | J15: 1.014492754 | K15: 280 | L15: 1
B16: 特定 | C16: 19 | D16: 0 | E16: 19 | F16: 1 | G16: 19 | H16: 1 | I16: 19 | J16: 1 | K16: 19 | L16: 1
A17: 埼玉 | C17: 73766 | D17: 0 | E17: 75548 | F17: 1.024157471 | G17: 94168 | H17: 1.246465823 | I17: 94579 | J17: 1.00436454 | K17: 95236 | L17: 1.006946574
B18: 一般 | C18: 73702 | D18: 0 | E18: 75491 | F18: 1.024273425 | G18: 94161 | H18: 1.247314249 | I18: 94572 | J18: 1.004364864 | K18: 95228 | L18: 1.006936514
B19: 特積 | C19: 577 | D19: 0 | E19: 586 | F19: 1.01559792 | G19: 470 | H19: 0.8020477816 | I19: 600 | J19: 1.276595745 | K19: 600 | L19: 1
B20: 特定 | C20: 64 | D20: 0 | E20: 57 | F20: 0.890625 | G20: 7 | H20: 0.1228070175 | I20: 7 | J20: 1 | K20: 8 | L20: 1.142857143
A21: 千葉 | C21: 62609 | D21: 0 | E21: 63827 | F21: 1.019454072 | G21: 65272 | H21: 1.022639322 | I21: 66586 | J21: 1.020131144 | K21: 67368 | L21: 1.01174421
B22: 一般 | C22: 62462 | D22: 0 | E22: 63681 | F22: 1.019515866 | G22: 65126 | H22: 1.022691227 | I22: 66440 | J22: 1.020176274 | K22: 67222 | L22: 1.011770018
B23: 特積 | C23: 231 | D23: 0 | E23: 228 | F23: 0.987012987 | G23: 228 | H23: 1 | I23: 232 | J23: 1.01754386 | K23: 231 | L23: 0.9956896552
B24: 特定 | C24: 147 | D24: 0 | E24: 146 | F24: 0.9931972789 | G24: 146 | H24: 1 | I24: 146 | J24: 1 | K24: 146 | L24: 1
A25: 東京 | C25: 107558 | D25: 0 | E25: 107695 | F25: 1.001273731 | G25: 107933 | H25: 1.002209945 | I25: 107773 | J25: 0.9985175989 | K25: 106768 | L25: 0.9906748443
B26: 一般 | C26: 107374 | D26: 0 | E26: 107511 | F26: 1.001275914 | G26: 107749 | H26: 1.002213727 | I26: 107589 | J26: 0.9985150674 | K26: 106584 | L26: 0.9906588964
B27: 特積 | C27: 379 | D27: 0 | E27: 378 | F27: 0.9973614776 | G27: 386 | H27: 1.021164021 | I27: 372 | J27: 0.9637305699 | K27: 367 | L27: 0.9865591398
B28: 特定 | C28: 184 | D28: 0 | E28: 184 | F28: 1 | G28: 184 | H28: 1 | I28: 184 | J28: 1 | K28: 184 | L28: 1
A29: 神奈川 | C29: 72351 | D29: 0 | E29: 73110 | F29: 1.010490525 | G29: 73817 | H29: 1.00967036 | I29: 73923 | J29: 1.001435984 | K29: 74022 | L29: 1.001339231
B30: 一般 | C30: 72294 | D30: 0 | E30: 73053 | F30: 1.010498797 | G30: 73784 | H30: 1.010006434 | I30: 73890 | J30: 1.001436626 | K30: 73991 | L30: 1.001366897
B31: 特積 | C31: 250 | D31: 0 | E31: 255 | F31: 1.02 | G31: 257 | H31: 1.007843137 | I31: 260 | J31: 1.011673152 | K31: 262 | L31: 1.007692308
B32: 特定 | C32: 57 | D32: 0 | E32: 57 | F32: 1 | G32: 33 | H32: 0.5789473684 | I32: 33 | J32: 1 | K32: 31 | L32: 0.9393939394
A33: 山梨 | C33: 8516 | D33: 0 | E33: 8197 | F33: 0.9625410991 | G33: 8675 | H33: 1.058314017 | I33: 8875 | J33: 1.023054755 | K33: 8930 | L33: 1.006197183
B34: 一般 | C34: 8516 | D34: 0 | E34: 8197 | F34: 0.9625410991 | G34: 8675 | H34: 1.058314017 | I34: 8875 | J34: 1.023054755 | K34: 8930 | L34: 1.006197183
B35: 特積 | C35: 56 | D35: 0 | E35: 56 | F35: 1 | G35: 52 | H35: 0.9285714286 | I35: 52 | J35: 1 | K35: 53 | L35: 1.019230769
B36: 特定 | C36: 0 | D36: 0 | E36: 0 | F36: =IFERROR(E36/C36,0) -> 0 | G36: 0 | H36: 0 | I36: 0 | J36: 0 | K36: 0 | L36: 0
A37: 合計 | C37: =C33+C9+C5+C21+C13+C17+C29+C25 -> 424426 | D37: 0 | E37: =E33+E9+E5+E21+E13+E17+E29+E25 -> 429323 | F37: =IFERROR(E37/C37,0) -> 1.011537936 | G37: =G33+G9+G5+G21+G13+G17+G29+G25 -> 452131 | H37: 1.053125502 | I37: 452131 | J37: 1 | K37: 456210 | L37: 1.009021722
B38: 一般 | C38: =C34+C10+C6+C22+C14+C18+C30+C26 -> 423932 | D38: 0 | E38: =E34+E10+E6+E22+E14+E18+E30+E26 -> 428837 | F38: =IFERROR(E38/C38,0) -> 1.011570252 | G38: =G34+G10+G6+G22+G14+G18+G30+G26 -> 451731 | H38: 1.053386252 | I38: 451731 | J38: 1 | K38: 455821 | L38: 1.009054061
B39: 特積 | C39: =C35+C11+C7+C23+C15+C19+C31+C27 -> 2271 | D39: 0 | E39: =E35+E11+E7+E23+E15+E19+E31+E27 -> 2268 | F39: =IFERROR(E39/C39,0) -> 0.998678996 | G39: =G35+G11+G7+G23+G15+G19+G31+G27 -> 2156 | H39: 0.950617284 | I39: 2156 | J39: 1 | K39: 2275 | L39: 1.055194805
B40: 特定 | C40: =C36+C12+C8+C24+C16+C20+C32+C28 -> 494 | D40: 0 | E40: =E36+E12+E8+E24+E16+E20+E32+E28 -> 486 | F40: =IFERROR(E40/C40,0) -> 0.983805668 | G40: =G36+G12+G8+G24+G16+G20+G32+G28 -> 400 | H40: 0.8230452675 | I40: 400 | J40: 1 | K40: 389 | L40: 0.9725
A41: 注）「特積」欄は、「一般」欄の内数を示す。
